bitfinex-derivatives/quotes_ETHF0:USTF0_20241104
["timestamp","ask_amount","ask_price","bid_price","bid_amount"]
[1730686704442,0.4058,2465.4,2465.2,0.40582]
[1730686704641,0.4058,2465.4,2465.3,0.40581]
[1730686705232,0.83977,2465.6,2465.4,0.40578]
[1730686705436,0.434,2465.6,2465.5,0.40577]
[1730686705839,0.83976,2465.6,2465.5,0.40577]
[1730686706646,0.434,2465.6,2465.5,0.40577]
[1730686706939,0.4633,2465.7,2465.6,0.40576]
[1730686707338,0.86904,2465.7,2465.6,0.40576]
[1730686708045,0.86905,2465.7,2465.6,0.40576]
[1730686709443,0.4633,2465.7,2465.6,0.40576]
[1730686709644,0.86904,2465.7,2465.6,0.40576]
[1730686710548,0.4633,2465.7,2465.6,0.40576]
[1730686711848,0.40569,2466.1,2465.6,7.22018337]
[1730686712046,0.4057,2466.0,2465.6,3.16418337]
[1730686712442,0.4562,2466.1,2466.0,0.40569]
[1730686712443,0.86189,2466.1,2466.0,0.40569]
[1730686712937,0.86189,2466.1,2465.6,3.16418337]
[1730686713142,0.4057,2466.0,2465.9,0.4057]
[1730686713842,0.40571,2465.9,2465.8,0.40571]
[1730686714251,0.4562,2466.1,2465.6,3.16418337]
[1730686714741,0.4562,2466.1,2466.0,0.40569]
[1730686715153,0.4403,2466.2,2466.1,0.40568]
[1730686716442,0.444,2466.4,2466.3,0.40564]
[1730686716943,0.84963,2466.4,2466.3,0.40564]
[1730686718248,0.444,2466.4,2466.0,1.3502]
[1730686718550,0.84964,2466.4,2466.2,0.40565]
[1730686718743,0.84964,2466.4,2466.3,0.40564]
[1730686718949,0.444,2466.4,2466.3,0.40564]
[1730686719253,0.84963,2466.4,2466.3,0.40564]
[1730686719851,0.444,2466.4,2466.3,0.40564]
[1730686720159,0.84963,2466.4,2466.3,0.40564]
[1730686721045,0.40566,2466.3,2466.1,0.40566]
[1730686721242,0.40566,2466.3,2466.2,0.40566]
[1730686721756,0.84963,2466.4,2466.3,0.40564]
[1730686722053,0.444,2466.4,2466.3,0.40564]
[1730686722257,3.2078,2466.5,2466.4,0.40563]
[1730686722753,3.2078,2466.8,2466.7,0.40558]
[1730686725454,3.2078,2466.8,2466.7,4.45918]
[1730686727357,0.40554,2467.0,2466.7,4.0536]
[1730686727552,3.2078,2467.0,2466.9,0.40554]
[1730686728162,3.61333,2467.0,2466.9,0.40554]
[1730686731056,3.2078,2467.0,2466.6,3.16418337]
[1730686731255,3.2078,2467.0,2466.8,0.40555]
[1730686731256,0.40556,2466.9,2466.8,0.40555]
[1730686731560,0.40554,2466.9,2466.8,0.40556]
[1730686733558,3.61334,2467.0,2466.9,0.40554]
[1730686734761,0.40554,2467.0,2466.9,0.40554]
[1730686734962,3.61334,2467.0,2466.9,0.40554]
[1730686736464,3.61333,2467.0,2466.9,0.40554]
[1730686737162,3.2078,2467.0,2466.9,0.40554]
[1730686737360,0.8917,2467.2,2467.1,0.40551]
[1730686737552,0.40544,2467.6,2467.5,0.40543]
[1730686737754,0.4627,2467.8,2467.3,1.0137]
[1730686737958,0.40542,2467.7,2467.3,1.0137]
[1730686738166,0.40544,2467.6,2467.2,1.47405]
[1730686738361,0.40542,2467.7,2467.6,0.40542]
[1730686738562,0.86811,2467.8,2467.7,0.40541]
[1730686738756,0.4627,2467.8,2467.7,0.40541]
[1730686739163,0.455,2467.9,2467.6,3.16418337]
[1730686739354,3.2078,2468.0,2467.6,3.16418337]
[1730686739355,3.2078,2468.0,2467.9,0.40538]
[1730686739955,0.455,2468.2,2468.1,0.40535]
[1730686740162,0.86033,2468.2,2468.1,0.40535]
[1730686741863,0.86033,2468.2,2468.0,0.40535]
[1730686742066,0.40538,2468.0,2467.6,3.16418337]
[1730686742366,0.455,2468.2,2468.1,0.40535]
[1730686742566,0.4053,2468.4,2468.0,3.16418337]
[1730686742768,0.4053,2468.4,2468.1,0.44]
[1730686743156,0.4053,2468.4,2468.2,0.40532]
[1730686743465,3.2078,2468.5,2467.8,3.16418337]
[1730686743872,0.40532,2468.3,2468.1,0.40533]
[1730686744368,3.2078,2468.5,2468.1,0.40533]
[1730686745055,3.2078,2468.5,2467.7,3.6413]
[1730686745256,3.2078,2468.2,2467.7,3.6413]
[1730686745463,0.4248,2468.1,2468.0,0.40536]
[1730686746669,0.83016,2468.1,2467.9,0.40537]
[1730686746859,0.4248,2468.1,2467.6,6.37198337]
[1730686747063,0.4248,2468.1,2467.9,3.16418337]
[1730686747268,0.4248,2468.1,2468.0,0.40536]
[1730686747763,0.4248,2468.1,2467.9,0.40537]
[1730686748067,0.40537,2468.0,2467.8,0.40538]
[1730686749557,0.40539,2467.9,2467.7,3.56959337]
[1730686749756,0.40539,2467.9,2467.8,0.4054]
[1730686749965,0.4248,2468.1,2467.8,0.4054]
[1730686750169,0.40537,2468.0,2467.8,0.4054]
[1730686750562,0.40538,2467.9,2467.8,0.4054]
[1730686750761,0.40537,2468.0,2467.8,0.4054]
[1730686751571,0.4248,2468.1,2467.7,3.56959337]
[1730686751764,0.40536,2468.0,2467.7,3.56959337]
[1730686751965,0.4456,2468.0,2467.7,3.56959337]
[1730686752162,0.4456,2468.0,2467.6,3.2078]
[1730686752163,0.4456,2468.0,2467.6,3.61322]
[1730686752367,0.40541,2467.8,2467.6,3.61322]
[1730686752667,0.40541,2467.7,2467.6,3.61322]
[1730686753167,0.40541,2467.7,2467.6,3.2078]
[1730686753368,0.40541,2467.7,2467.5,0.40543]
[1730686753570,0.40545,2467.5,2467.4,0.40546]
[1730686753768,0.40547,2467.4,2467.2,3.16418337]
[1730686754066,0.40546,2467.4,2467.3,0.40547]
[1730686754270,0.40546,2467.4,2467.2,3.16418337]
[1730686754471,0.40546,2467.4,2467.3,0.40548]
[1730686754661,0.40546,2467.4,2467.2,3.56966337]
[1730686754662,3.2078,2467.4,2467.2,3.56966337]
[1730686754861,0.4055,2467.2,2466.9,3.16418337]
[1730686755064,0.4055,2467.2,2467.0,0.40551]
[1730686755272,0.4441,2467.1,2467.0,0.40553]
[1730686756176,0.40549,2467.3,2467.1,0.4055]
[1730686756576,0.4055,2467.2,2467.1,0.4055]
[1730686756975,0.4055,2467.2,2466.9,3.16418337]
[1730686757172,0.4055,2467.2,2467.0,0.40552]
[1730686757677,0.4055,2467.2,2467.1,0.40551]
[1730686759882,0.85949,2467.3,2467.1,0.4055]
[1730686760085,0.85949,2467.3,2467.2,0.4055]
[1730686760380,0.40549,2467.3,2467.2,0.4055]
[1730686760978,4.0528,2467.3,2466.8,4.0853]
[1730686761279,3.2078,2467.4,2466.9,3.16418337]
[1730686761487,0.40548,2467.3,2467.2,0.40549]
[1730686761869,0.454,2467.5,2466.9,3.16418337]
[1730686762076,0.40551,2467.2,2467.1,0.40551]
[1730686764687,0.4192,2467.4,2466.9,3.16418337]
[1730686764984,0.4055,2467.2,2467.1,0.40551]
[1730686765985,0.4192,2467.4,2466.9,3.16418337]
[1730686766386,0.4192,2467.4,2467.0,0.40551]
[1730686766387,0.40551,2467.2,2467.0,0.40551]
[1730686767288,0.4192,2467.4,2467.3,0.40548]
[1730686767589,0.40545,2467.5,2467.4,0.40545]
[1730686767783,0.40544,2467.6,2467.5,0.40544]
[1730686768684,0.878,2467.7,2467.3,0.4199]
[1730686768879,0.878,2467.7,2467.6,0.40543]
[1730686768880,1.28342,2467.7,2467.6,0.40543]
[1730686769374,0.878,2467.7,2467.3,0.4199]
[1730686769587,0.40544,2467.6,2467.5,0.40544]
[1730686770179,0.878,2467.7,2467.3,0.4199]
[1730686770381,0.40545,2467.5,2467.4,0.40545]
[1730686770580,0.878,2467.7,2467.4,0.40546]
[1730686770779,0.40544,2467.6,2467.5,0.40544]
[1730686771481,0.40545,2467.5,2467.4,0.40545]
[1730686772787,0.40543,2467.6,2467.3,0.40547]
[1730686772981,0.40552,2467.1,2466.9,3.58678337]
[1730686773188,0.40552,2467.1,2467.0,0.40552]
[1730686773892,0.4558,2467.2,2466.9,4.03728337]
[1730686774086,0.4558,2467.2,2466.9,0.4505]
[1730686774388,0.4558,2467.2,2467.0,0.40552]
[1730686774389,0.40552,2467.1,2467.0,0.40552]
[1730686774584,0.40554,2467.0,2466.8,0.40554]
[1730686774781,0.40554,2467.0,2466.8,0.40556]
[1730686774987,0.4457,2466.9,2466.8,0.40556]
[1730686775498,0.4457,2466.9,2466.7,3.16418337]
[1730686775786,0.4457,2466.9,2466.8,0.40556]
[1730686775787,0.85126,2466.9,2466.8,0.40556]
[1730686775993,0.4457,2466.9,2466.8,0.40556]
[1730686776289,0.85124,2466.9,2466.8,0.40556]
[1730686776492,0.4457,2466.9,2466.8,0.40556]
[1730686776688,0.85124,2466.9,2466.8,0.40556]
[1730686777107,0.85124,2466.9,2466.7,3.56974337]
[1730686777399,0.4457,2466.9,2466.8,0.40556]
[1730686777602,0.85124,2466.9,2466.8,0.40556]
[1730686779287,0.40556,2466.8,2466.5,0.4587]
[1730686779490,0.4524,2466.7,2466.6,0.40559]
[1730686780699,0.4457,2466.9,2466.8,0.40556]
[1730686781596,0.4637,2467.1,2467.0,0.40553]
[1730686781992,0.86922,2467.1,2466.9,0.40553]
[1730686782194,0.4637,2467.1,2467.0,0.40553]
[1730686782895,0.4637,2467.1,2466.7,3.16418337]
[1730686783095,0.40553,2467.0,2466.9,0.40554]
[1730686783302,0.40553,2467.0,2466.6,0.4505]
[1730686783303,0.4637,2467.1,2466.6,0.4505]
[1730686783593,0.4644,2466.9,2466.5,0.9001]
[1730686783797,0.40556,2466.8,2466.6,0.40558]
[1730686784101,0.86995,2466.9,2466.8,0.40556]
[1730686784396,0.40556,2466.8,2466.7,0.40557]
[1730686784610,0.86995,2466.9,2466.8,0.40556]
[1730686784799,0.4644,2466.9,2466.8,0.40556]
[1730686785508,0.86994,2466.9,2466.8,0.40556]
[1730686785999,0.4644,2466.9,2466.8,0.40556]
[1730686786304,4.518,2466.9,2466.8,0.40556]
[1730686786504,0.4644,2466.9,2466.8,0.40556]
[1730686787204,0.86922,2467.1,2466.9,0.40553]
[1730686787398,0.40553,2467.0,2466.9,0.40554]
[1730686787597,0.40554,2467.0,2466.8,0.40555]
[1730686787902,0.40554,2467.0,2466.9,0.40554]
[1730686788096,0.40556,2466.9,2466.5,0.4587]
[1730686788299,0.40553,2467.0,2466.7,0.40557]
[1730686788495,0.40556,2466.9,2466.7,0.40557]
[1730686788695,0.83586,2466.9,2466.7,0.40557]
[1730686789194,0.83586,2466.9,2466.8,0.40556]
[1730686789195,0.4303,2466.9,2466.8,0.40556]
[1730686789397,0.40554,2467.0,2466.8,0.40556]
[1730686790300,4.5522,2467.1,2466.5,0.4587]
[1730686790502,0.40554,2466.9,2466.8,0.40555]
[1730686793603,4.5522,2467.1,2466.8,0.40555]
[1730686793804,0.40553,2467.0,2466.9,0.40554]
[1730686795401,0.40553,2467.0,2466.5,0.4587]
[1730686795402,4.95772,2467.1,2467.0,0.40553]
[1730686796407,4.1118,2467.1,2467.0,0.40553]
[1730686796605,0.40548,2467.3,2467.2,0.40548]
[1730686796804,0.9036,2467.4,2466.9,3.16418337]
[1730686797014,0.40549,2467.3,2467.2,0.40549]
[1730686797913,0.9036,2467.4,2467.0,0.4205]
[1730686798106,0.4055,2467.2,2467.1,1.1035104]
[1730686798317,0.9036,2467.4,2467.1,0.12678619]
[1730686798609,0.40548,2467.3,2467.2,0.12678619]
[1730686798818,0.40551,2467.1,2467.0,0.82602]
[1730686799005,0.40551,2467.1,2466.8,0.8611]
[1730686799006,3.2078,2467.2,2466.8,0.8611]
[1730686799310,0.40552,2467.1,2467.0,0.53232605]
[1730686799500,0.9036,2467.4,2467.0,0.57133922]
[1730686799701,0.9036,2467.4,2467.1,0.461]
[1730686799901,1.30907,2467.4,2467.3,0.40548]
[1730686800613,3.2078,2467.5,2467.1,0.461]
[1730686800810,3.2078,2467.5,2467.4,0.40546]
[1730686801606,3.2078,2467.5,2467.4,4.45826]
[1730686801808,3.2078,2467.8,2467.7,0.40541]
[1730686802116,3.2078,2467.8,2467.7,0.1267763]
[1730686802117,3.6132,2467.8,2467.7,0.1267763]
[1730686802409,3.2078,2467.8,2467.7,0.5321863]
[1730686802614,3.6132,2467.8,2467.7,0.5321863]
[1730686803115,3.2078,2467.8,2467.7,0.5321863]
[1730686803707,3.6132,2467.8,2467.7,0.5321863]
[1730686804011,3.2078,2467.8,2467.7,0.5321863]
[1730686804608,3.2078,2467.8,2467.7,0.53216829]
[1730686805009,3.2078,2467.8,2467.7,0.40541]
[1730686805410,3.61319,2467.9,2467.4,3.16418337]
[1730686805617,3.2078,2467.9,2467.8,0.4054]
[1730686806118,3.2078,2467.9,2467.8,7.62158337]
[1730686806322,3.2078,2468.4,2467.8,7.62158337]
[1730686806510,3.6131,2468.4,2468.3,0.40531]
[1730686807913,3.2078,2468.4,2468.3,0.40531]
[1730686808314,0.4053,2468.4,2468.3,0.40531]
[1730686808622,0.4053,2468.4,2468.1,3.16418337]
[1730686808821,1.28579,2468.5,2468.4,0.4053]
[1730686809019,0.40527,2468.6,2468.1,3.16418337]
[1730686809217,0.40527,2468.6,2468.5,0.40528]
[1730686809409,0.40527,2468.6,2468.1,3.16418337]
[1730686809410,3.61305,2468.7,2468.6,0.40527]
[1730686809614,3.2078,2468.7,2468.1,3.16418337]
[1730686810016,3.2078,2468.7,2467.9,4.06778337]
[1730686810213,0.40527,2468.6,2468.5,0.40528]
[1730686810521,3.2078,2468.7,2468.6,0.40527]
[1730686810925,0.40527,2468.6,2468.5,0.86758]
[1730686811424,3.2078,2468.7,2468.6,0.40527]
[1730686811828,0.40527,2468.6,2468.5,0.86757]
[1730686814026,1.25344,2468.8,2468.6,0.40525]
[1730686814230,0.8482,2468.8,2468.6,3.16418337]
[1730686814422,1.25345,2468.8,2468.6,3.56944337]
[1730686814631,1.25345,2468.8,2468.7,0.40525]
[1730686814826,1.25345,2468.8,2468.6,3.61778337]
[1730686815029,0.40525,2468.7,2468.6,4.02304337]
[1730686815224,1.25344,2468.8,2468.7,0.40525]
[1730686815619,0.8482,2468.8,2468.6,4.02303337]
[1730686815824,0.40525,2468.7,2468.6,4.02303337]
[1730686816022,0.10166261,2469.2,2468.6,3.61778337]
[1730686816227,3.2078,2469.3,2468.6,3.61778337]
[1730686816228,1.2784,2469.1,2468.8,3.16418337]
[1730686816425,0.8732,2469.1,2468.8,3.16418337]
[1730686816630,0.8732,2469.1,2469.0,0.4052]
[1730686816823,0.8732,2469.1,2468.8,3.16418337]
[1730686816824,1.27839,2469.1,2468.9,0.4052]
[1730686817123,0.4052,2469.0,2468.9,0.4052]
[1730686817532,0.8732,2469.1,2468.9,0.4052]
[1730686817533,1.27839,2469.1,2468.9,0.4052]
[1730686817835,0.8732,2469.1,2468.8,3.16418337]
[1730686818029,0.4052,2469.0,2468.9,0.40521]
[1730686818929,1.27839,2469.1,2469.0,0.4052]
[1730686819325,1.27839,2469.1,2468.9,0.40521]
[1730686819531,0.8732,2469.1,2468.9,0.40521]
[1730686819725,0.8732,2469.1,2468.8,3.16418337]
[1730686819926,1.27839,2469.1,2469.0,0.4052]
[1730686820330,0.4052,2469.0,2468.9,0.4052]
[1730686820526,0.8732,2469.1,2469.0,0.4052]
[1730686820924,3.2078,2469.6,2469.0,7.2582]
[1730686821130,0.40513,2469.5,2469.3,0.40514]
[1730686821336,3.2078,2469.6,2469.2,3.16418337]
[1730686821532,0.40516,2469.3,2469.2,0.40517]
[1730686822336,3.2078,2469.6,2469.1,0.9006]
[1730686822527,3.2078,2469.6,2469.4,0.40513]
[1730686822728,3.61291,2469.6,2469.5,0.40512]
[1730686823429,3.2078,2469.6,2469.5,3.16418337]
[1730686823625,3.6129,2469.6,2469.5,3.16418337]
[1730686824229,3.6129,2469.6,2469.5,3.56930337]
[1730686824440,3.2078,2469.6,2469.5,3.56930337]
[1730686825235,3.2078,2469.6,2469.5,7.61890337]
[1730686825538,3.61284,2470.0,2469.9,0.40505]
[1730686825732,3.61284,2470.0,2469.9,3.56923337]
[1730686826034,3.61284,2470.0,2469.9,3.16418337]
[1730686828143,7.2566,2470.0,2469.4,3.16418337]
[1730686828336,0.40512,2469.5,2469.4,3.16418337]
[1730686828535,0.40512,2469.5,2469.4,3.56931337]
[1730686829037,0.40512,2469.5,2469.4,3.16418337]
[1730686829243,0.40512,2469.5,2469.4,3.56931337]
[1730686829649,0.40512,2469.5,2469.4,3.16418337]
[1730686830032,0.40512,2469.5,2469.4,3.56931337]
[1730686830236,0.40512,2469.5,2469.4,3.16418337]
[1730686831143,0.40512,2469.5,2469.2,3.61295]
[1730686831144,7.2574,2469.5,2469.2,3.16418337]
[1730686831349,0.40517,2469.2,2469.1,0.40518]
[1730686833235,0.40517,2469.2,2469.1,0.40517]
[1730686834452,0.40517,2469.2,2469.0,0.4287]
[1730686834453,0.40518,2469.1,2469.0,0.83389]
[1730686834652,0.40517,2469.2,2469.1,0.40518]
[1730686836055,0.40518,2469.2,2469.1,0.40518]
[1730686836241,0.40518,2469.1,2469.0,0.83389]
[1730686836550,0.40517,2469.2,2469.1,0.40518]
[1730686837649,0.40516,2469.3,2469.2,0.40517]
[1730686838147,0.40515,2469.3,2469.1,0.40517]
[1730686839150,0.4261,2469.4,2469.1,0.40517]
[1730686839352,0.40518,2469.1,2469.0,0.83389]
[1730686839549,0.40518,2469.2,2469.1,0.40518]
[1730686840255,0.40518,2469.2,2469.0,0.4287]
[1730686840256,0.40518,2469.1,2469.0,0.83389]
[1730686840549,0.40517,2469.2,2469.1,0.40518]
[1730686841648,0.40517,2469.2,2468.8,0.4495]
[1730686841649,0.40522,2468.9,2468.8,0.85473]
[1730686841953,0.40522,2468.9,2468.7,3.59358337]
[1730686841954,0.4344,2469.1,2468.7,3.61118337]
[1730686842160,0.83959,2469.1,2469.0,0.4052]
[1730686843355,0.4052,2469.0,2468.9,3.56938337]
[1730686843761,0.83959,2469.1,2469.0,0.4052]
[1730686844054,0.83959,2469.1,2468.9,3.16418337]
[1730686844055,0.4052,2469.0,2468.9,3.56939337]
[1730686845248,0.4052,2469.0,2468.9,0.40521]
[1730686845550,0.4052,2469.0,2468.9,1.86471625]
[1730686845751,0.83959,2469.1,2469.0,0.4052]
[1730686846147,0.4261,2469.4,2469.0,1.45950625]
[1730686846349,3.2078,2469.8,2468.9,1.45950625]
[1730686846350,0.4473,2469.5,2469.4,0.40513]
[1730686846655,0.4473,2469.5,2469.4,1.86463625]
[1730686846859,0.85242,2469.5,2469.4,1.86463625]
[1730686847367,0.40511,2469.6,2469.5,0.4051]
[1730686847556,3.6393,2469.8,2469.5,0.4543]
[1730686847756,0.40508,2469.7,2469.6,0.4051]
[1730686848156,4.04437,2469.8,2469.7,0.40508]
[1730686848456,3.2078,2469.8,2469.7,3.56666732]
[1730686849056,3.61287,2469.8,2469.7,3.16158732]
[1730686849462,3.61287,2469.8,2469.7,3.56666732]
[1730686850362,3.61287,2469.8,2469.7,3.16158732]
[1730686850761,3.61287,2469.8,2469.5,4.05598732]
[1730686851064,0.40509,2469.7,2469.6,0.40509]
[1730686851964,3.61288,2469.8,2469.7,0.40508]
[1730686852260,3.61288,2469.8,2469.6,0.40509]
[1730686852261,0.40509,2469.7,2469.6,0.40509]
[1730686853167,0.4051,2469.7,2469.6,0.40509]
[1730686853361,3.61288,2469.8,2469.6,0.40509]
[1730686853565,0.40509,2469.7,2469.6,0.40509]
[1730686853859,0.4051,2469.7,2469.5,4.02098732]
[1730686854059,0.4486,2469.7,2469.5,3.61588732]
[1730686854265,0.4051,2469.6,2469.5,4.02099732]
[1730686855059,0.4486,2469.7,2469.5,4.02099732]
[1730686855260,0.8537,2469.7,2469.5,4.02099732]
[1730686855466,0.8537,2469.7,2469.6,0.4051]
[1730686856060,0.8537,2469.7,2469.5,3.61588732]
[1730686856061,0.4486,2469.7,2469.5,3.61588732]
[1730686856262,0.40513,2469.4,2469.3,3.56672732]
[1730686856467,0.40513,2469.4,2469.3,3.69340085]
[1730686856660,0.40513,2469.4,2469.3,3.56672732]
[1730686857360,0.40513,2469.4,2469.3,3.16158732]
[1730686857765,0.40515,2469.3,2469.2,0.4613]
[1730686858967,0.40515,2469.3,2469.2,0.86647]
[1730686859162,0.40515,2469.3,2469.2,0.4613]
[1730686859367,0.40517,2469.2,2468.9,0.4192]
[1730686859563,0.40521,2469.0,2468.9,0.40521]
[1730686859764,0.40521,2469.0,2468.9,0.12669232]
[1730686860065,0.40521,2469.0,2468.9,0.53191232]
[1730686860361,0.4642,2469.1,2468.9,0.69149055]
[1730686860558,0.8694,2469.1,2469.0,0.12669232]
[1730686861170,4.0681,2469.2,2468.8,3.59558732]
[1730686861171,3.628,2469.2,2468.8,3.59558732]
[1730686861464,3.628,2469.2,2468.9,0.56490202]
[1730686861465,0.40521,2469.0,2468.9,0.56490202]
[1730686861659,0.40521,2469.0,2468.9,0.12669045]
[1730686862065,3.628,2469.2,2468.9,0.12669598]
[1730686862264,0.40519,2469.1,2468.9,0.40522]
[1730686862567,0.40519,2469.1,2469.0,0.12669004]
[1730686863067,0.4202,2469.2,2469.1,0.40518]
[1730686863366,0.40514,2469.4,2469.1,0.12669004]
[1730686863566,0.8858,2469.5,2469.2,0.55429004]
[1730686863762,0.40515,2469.3,2469.2,0.83276]
[1730686863966,0.40515,2469.3,2469.2,0.9594392]
[1730686864268,0.40515,2469.3,2469.2,0.5542792]
[1730686865266,0.40515,2469.3,2469.2,0.4276]
[1730686865470,0.40515,2469.3,2469.2,0.55428311]
[1730686866367,0.40515,2469.4,2469.3,0.40514]
[1730686866574,0.40515,2469.4,2469.3,0.12667727]
[1730686867464,0.40515,2469.4,2469.3,0.53182727]
[1730686867675,0.40515,2469.4,2469.3,0.12667727]
[1730686869572,0.40515,2469.4,2468.8,1.05726513]
[1730686869573,4.0496,2469.4,2468.8,4.66125245]
[1730686869767,0.8858,2469.5,2468.9,0.69196531]
[1730686869768,0.4624,2469.3,2468.9,0.69196531]
[1730686869963,0.40519,2469.1,2469.0,0.12669425]
[1730686870872,0.4052,2469.0,2468.9,0.40521]
[1730686871169,0.8398,2469.0,2468.9,0.53190653]
[1730686871371,0.8398,2469.0,2468.9,1.99152321]
[1730686872168,0.8398,2469.0,2468.9,1.58631321]
[1730686873074,0.8398,2469.0,2468.9,1.99153321]
[1730686873278,0.4346,2469.0,2468.8,0.4424]
[1730686873467,0.8398,2469.0,2468.9,0.12669641]
[1730686873667,0.8398,2469.0,2468.8,4.01005964]
[1730686873668,0.40522,2468.9,2468.8,4.01005964]
[1730686873866,0.40522,2468.9,2468.8,4.70193663]
[1730686874069,0.40517,2469.2,2469.1,0.40517]
[1730686874271,0.86756,2469.3,2469.2,0.40517]
[1730686874570,0.40517,2469.2,2469.1,3.56760964]
[1730686874781,0.40517,2469.2,2469.1,3.69429286]
[1730686875682,0.4624,2469.3,2469.2,0.40517]
[1730686875683,0.86757,2469.3,2469.2,0.40517]
[1730686876187,0.40517,2469.2,2469.1,3.56760964]
[1730686876376,0.40517,2469.2,2469.1,3.69429357]
[1730686878878,0.4624,2469.3,2469.1,3.28912357]
[1730686879080,0.4641,2469.4,2469.2,0.12668255]
[1730686879388,0.86925,2469.4,2469.3,0.40515]
[1730686879796,0.86925,2469.4,2469.3,0.53182505]
[1730686879979,0.4641,2469.4,2469.2,0.8744]
[1730686880179,0.4641,2469.4,2469.2,1.27957]
[1730686880180,0.40515,2469.3,2469.2,1.27957]
[1730686880387,0.40515,2469.3,2469.2,1.40624995]
[1730686881890,0.40515,2469.3,2469.2,0.12667995]
[1730686882388,0.40517,2469.2,2469.1,3.56761964]
[1730686882584,0.40517,2469.2,2469.1,3.6943044]
[1730686882984,0.40517,2469.2,2469.1,3.2891244]
[1730686883286,0.40517,2469.2,2469.1,0.12668476]
[1730686883493,0.40522,2468.9,2468.8,4.43935964]
[1730686883697,0.40521,2469.0,2468.9,0.40521]
[1730686883886,0.40521,2469.0,2468.9,1.09608125]
[1730686884191,0.40521,2469.0,2468.9,0.690891]
[1730686884379,0.4052,2469.0,2468.9,0.56417776]
[1730686884692,0.4052,2469.0,2468.9,1.09609281]
[1730686885284,0.4052,2469.0,2468.9,1.09616097]
[1730686885494,0.4052,2469.0,2468.9,0.69094097]
[1730686886784,0.4052,2469.0,2468.9,0.12669505]
[1730686886785,4.4556,2469.0,2468.9,0.12669505]
[1730686886984,0.40525,2468.7,2468.6,3.16243964]
[1730686887183,3.2078,2468.7,2468.6,0.1267068]
[1730686887387,3.2078,2468.7,2468.3,3.61623964]
[1730686887581,0.40528,2468.6,2468.4,1.0964887]
[1730686887782,0.40528,2468.6,2468.5,0.12671724]
[1730686888794,0.4053,2468.5,2468.3,3.56773964]
[1730686888991,0.85088,2468.5,2468.4,0.12672249]
[1730686889292,0.4053,2468.4,2468.3,3.56773964]
[1730686889485,0.4053,2468.4,2468.3,3.69446282]
[1730686889680,0.4053,2468.4,2468.3,3.28916282]
[1730686890190,0.8414,2468.4,2468.3,3.16243964]
[1730686890986,0.8414,2468.4,2468.1,6.37023964]
[1730686890987,0.40533,2468.2,2468.1,6.37023964]
[1730686891293,4.9231,2468.4,2467.9,3.16243964]
[1730686891294,0.40536,2468.0,2467.9,3.16243964]
[1730686891492,0.40536,2468.0,2467.9,3.28917936]
[1730686891888,0.40536,2468.0,2467.9,3.16243964]
[1730686892693,0.40534,2468.2,2467.9,7.21443964]
[1730686892891,0.40534,2468.2,2468.1,3.16243964]
[1730686893091,3.61313,2468.3,2468.1,3.56777964]
[1730686893290,3.2078,2468.3,2468.1,3.16243964]
[1730686893487,3.2078,2468.3,2468.2,0.4417]
[1730686893488,3.61311,2468.3,2468.2,0.4417]
[1730686894001,3.2078,2468.3,2468.2,0.84703]
[1730686894509,3.61311,2468.3,2468.2,0.4417]
[1730686896498,7.259,2468.3,2467.9,3.16243964]
[1730686896691,0.40536,2468.0,2467.9,3.16243964]
[1730686896998,0.40536,2468.0,2467.9,3.56781964]
[1730686897397,0.4548,2468.2,2467.9,7.21443964]
[1730686897587,3.2078,2468.3,2467.8,0.46]
[1730686897588,0.40536,2468.0,2467.8,0.46]
[1730686897789,0.40538,2467.9,2467.8,0.46]
[1730686897986,0.85558,2467.9,2467.8,0.46]
[1730686898691,0.4502,2467.9,2467.8,0.8654]
[1730686898892,0.85558,2467.9,2467.8,0.46]
[1730686899094,0.4502,2467.9,2467.8,0.46]
[1730686899299,0.4502,2467.9,2467.8,0.8654]
[1730686899701,0.85558,2467.9,2467.8,0.8654]
[1730686900097,0.4502,2467.9,2467.8,0.46]
[1730686900397,0.4502,2467.9,2467.8,0.8654]
[1730686901097,3.2078,2468.3,2467.8,0.8654]
[1730686901098,3.2078,2468.3,2467.8,4.512]
[1730686901297,0.40536,2468.1,2467.9,3.56780964]
[1730686901499,0.40536,2468.1,2468.0,0.40536]
[1730686902503,3.6294,2468.3,2467.9,3.16243964]
[1730686902691,4.03472,2468.3,2468.2,0.40533]
[1730686902899,4.03472,2468.3,2467.9,3.16243964]
[1730686902900,4.03473,2468.3,2468.0,0.40536]
[1730686903200,4.03473,2468.3,2467.9,3.16243964]
[1730686903201,4.03473,2468.3,2468.1,0.40533]
[1730686903401,4.03473,2468.3,2467.9,3.16243964]
[1730686903594,0.40534,2468.2,2468.1,0.40534]
[1730686903800,0.40534,2468.2,2468.0,0.40535]
[1730686904097,0.40533,2468.2,2468.0,0.40535]
[1730686904796,3.6294,2468.3,2468.0,0.40535]
[1730686904797,0.40535,2468.1,2468.0,0.40535]
[1730686905395,3.6294,2468.3,2467.9,3.16243964]
[1730686905596,4.03473,2468.3,2468.2,0.40533]
[1730686905803,0.40534,2468.2,2468.1,0.40534]
[1730686906004,3.6294,2468.3,2467.9,3.16243964]
[1730686906198,0.40534,2468.2,2468.0,0.40536]
[1730686906398,3.2078,2468.3,2467.9,3.16243964]
[1730686906594,3.61312,2468.3,2468.2,0.40533]
[1730686907314,0.40534,2468.2,2468.1,0.40535]
[1730686907805,0.4556,2468.4,2468.1,0.40535]
[1730686907806,0.40533,2468.3,2468.1,0.40535]
[1730686908407,0.4556,2468.4,2468.1,0.40535]
[1730686908597,0.40533,2468.2,2468.1,0.40535]
[1730686909698,0.40535,2468.1,2468.0,0.40536]